[Event "FRA-ch Youth U16 2018"]
[Site "Agen"]
[Date "2018.04.22"]
[Round "9"]
[White "Grall, Alba"]
[Black "Rubsamen, Anais"]
[Result "1-0"]
[ECO "B32"]
[WhiteElo "1855"]
[BlackElo "1658"]
[Annotator "NA RC"]
[PlyCount "141"]
[EventDate "2018.??.??"]
[EventType "swiss"]
[EventCountry "FRA"]
[SourceTitle "playchess.com"]
[Source "ChessBase"]
[SourceQuality "1"]
[TimeControl "5400+30"]

1. e4 {[%emt 0:00:00]} c5 {[%emt 0:00:06]} 2. Nf3 {[%emt 0:00:07]} Nc6 {[%emt 0:00:05]} 3. d4 {[%emt 0:00:17]} cxd4 {[%emt 0:00:05]} 4. Nxd4 {[%emt 0:00:04]} e5 {[%emt 0:00:04]} 5. Nb5 {[%emt 0:00:47]} d6 {[%emt 0:00:05]} 6. N1c3 {[%emt 0:00:53]} a6 {[%emt 0:00:12]} 7. Na3 {[%emt 0:00:12]} Be7 {[%emt 0:00:11]} 8. Be3 {[%emt 0:01:29] B32: Sicilian: Löwenthal and Kalashnikov Variations} Nf6 {[%emt 0:00:36]} 9. Nd5 {[%emt 0:01:14]} (9. Nc4 b5 10. Nb6 Rb8 11. Nxc8 Qxc8 12. Be2 O-O 13. O-O Rd8 14. a4 d5 15. Nxd5 Nxd5 16. exd5 Nb4 17. axb5 Nxd5 18. Qc1 axb5 19. Rd1 Nxe3 20. Qxe3 Qxc2 21. Qxe5 Bf6 22. Rxd8+ {½-½ (22) Kravtsiv,M (2653)-Fedorov,A (2598) Khanty-Mansiysk 2017}) 9... Nxd5 {[%emt 0:02:06]} 10. exd5 {[%emt 0:03:15]} Nd4 {[%emt 0:00:06]} 11. c4 {[%emt 0:12:09]} O-O {[%emt 0:02:24]} 12. Bxd4 {[%emt 0:01:39]} exd4 {[%emt 0:00:06]} 13. Bd3 {[%emt 0:00:59]} Qa5+ $146 {[%emt 0:12:17]} ({Predecessor:} 13... Bf6 14. O-O Bd7 15. Re1 Qa5 {0-1 (37) Vroombout,E (2190)-Clemens,A (2162) Hoogeveen 2016}) 14. Qd2 {[%emt 0:14:59]} Qxd2+ {[%emt 0:01:09]} 15. Kxd2 {[%emt 0:00:04]} Bg5+ {[%emt 0:00:12]} 16. Kd1 {[%emt 0:06:27]} Bg4+ {[%emt 0:07:48]} 17. f3 {[%emt 0:06:36]} Bd7 {[%emt 0:02:01]} 18. Re1 {[%emt 0:01:20]} Rfe8 {[%emt 0:00:31]} 19. Re2 {[%emt 0:06:20]} Re3 {[%emt 0:04:48]} 20. Rxe3 {[%emt 0:00:17]} dxe3 {[%emt 0:00:57]} 21. Ke2 {[%emt 0:01:31]} f5 {[%emt 0:01:07]} 22. Nc2 {[%emt 0:04:47]} Re8 {[%emt 0:01:09]} 23. Rb1 {[%emt 0:04:05]} Bf6 {[%emt 0:03:42]} 24. f4 {[%emt 0:01:52]} g5 {[%emt 0:02:13]} 25. fxg5 {[%emt 0:02:38]} Bxg5 {[%emt 0:00:08]} 26. Rf1 {[%emt 0:00:51]} ({Better is} 26. Nd4 $16) 26... f4 {[%emt 0:00:31]} 27. h3 {[%emt 0:00:52]} Rf8 {[%emt 0:01:16]} 28. b3 {[%emt 0:01:55]} Bh4 {[%emt 0:04:00]} 29. Nd4 {[%emt 0:01:39]} Bg3 {[%emt 0:00:41]} 30. Nf3 {[%emt 0:03:19]} h6 $11 {[%emt 0:00:46]} 31. Rc1 {[%emt 0:02:20]} Rc8 {[%emt 0:01:42]} 32. Nd4 {[%emt 0:01:07]} Rf8 {[%emt 0:03:06]} 33. b4 {[%emt 0:00:45]} Kg7 {[%emt 0:01:08]} 34. c5 {[%emt 0:01:45]} dxc5 {[%emt 0:00:21]} 35. bxc5 {[%emt 0:00:10]} Kf6 {[%emt 0:00:11]} 36. Nf3 {[%emt 0:05:29]} Rc8 {[%emt 0:07:24]} 37. Rc2 {[%emt 0:04:10]} Ba4 {[%emt 0:03:01]} 38. Rc1 {[%emt 0:01:37]} Bd7 {[%emt 0:00:06]} 39. a3 {[%emt 0:01:41]} Be8 {[%emt 0:01:39]} 40. Rc3 {[%emt 0:01:51]} Bd7 {[%emt 0:03:39]} 41. c6 {[%emt 0:00:42]} bxc6 {[%emt 0:00:27]} 42. Bxa6 {[%emt 0:00:06]} Rc7 {[%emt 0:01:19]} 43. Bb5 {[%emt 0:02:08]} Rb7 {[%emt 0:05:49]} 44. dxc6 {[%emt 0:01:30]} Rxb5 {[%emt 0:00:37]} 45. cxd7 {[%emt 0:00:06]} Rd5 {[%emt 0:01:28]} 46. Rd3 {[%emt 0:00:58]} Rxd3 {[%emt 0:01:10]} 47. Kxd3 {[%emt 0:00:04]} Ke7 {[%emt 0:00:11]} 48. Ne5 {[%emt 0:00:17]} Be1 {[%emt 0:03:04]} 49. a4 {[%emt 0:00:27]} Kd8 {[%emt 0:02:17]} 50. a5 {[%emt 0:00:21]} Bxa5 {[%emt 0:00:17]} 51. Nc6+ {[%emt 0:00:06]} Kxd7 {[%emt 0:00:06]} 52. Nxa5 {[%emt 0:00:09]} Ke6 {[%emt 0:00:03]} 53. Nb3 {[%emt 0:00:59]} Kd5 {[%emt 0:01:34]} 54. Nd4 {[%emt 0:00:25]} Ke5 {[%emt 0:00:12]} 55. Nf3+ {[%emt 0:00:35]} Kf5 {[%emt 0:00:12]} 56. Ke2 {[%emt 0:00:23]} Ke4 {[%emt 0:01:53]} 57. Ng1 {[%emt 0:00:47]} Ke5 {[%emt 0:03:02]} 58. Kf3 {[%emt 0:00:08]} Kf5 {[%emt 0:00:05]} 59. Ne2 {[%emt 0:00:07]} Kg5 {[%emt 0:00:07]} 60. Nxf4 {[%emt 0:00:18]} Kh4 {[%emt 0:00:13]} 61. Ne2 {[%emt 0:00:53]} Kh5 {[%emt 0:00:25]} 62. Kxe3 {[%emt 0:00:09]} Kg5 {[%emt 0:00:09]} 63. Ke4 {[%emt 0:00:16]} Kh4 {[%emt 0:00:51]} 64. Kf3 {[%emt 0:02:57]} Kh5 {[%emt 0:00:15]} 65. g3 {[%emt 0:00:58]} Kg5 {[%emt 0:00:07]} 66. Nd4 {[%emt 0:00:15]} Kh5 {[%emt 0:00:36]} 67. Kf4 {[%emt 0:00:29]} Kg6 {[%emt 0:00:09]} 68. Kg4 {[%emt 0:00:22]} h5+ {[%emt 0:01:19]} 69. Kf4 {[%emt 0:00:13]} h4 {[%emt 0:00:09]} 70. g4 {[%emt 0:00:06]} Kf6 {[%emt 0:00:16]} 71. g5+ {[%emt 0:00:32]} 1-0

[Event "FRA-ch Youth U16 2018"]
[Site "Agen"]
[Date "2018.04.22"]
[Round "9"]
[White "Sabiani, Chjara"]
[Black "Djidjeli, Sarah"]
[Result "1/2-1/2"]
[ECO "D30"]
[WhiteElo "1723"]
[BlackElo "1903"]
[Annotator "NA RC"]
[PlyCount "59"]
[EventDate "2018.??.??"]
[EventType "swiss"]
[EventCountry "FRA"]
[SourceTitle "playchess.com"]
[Source "ChessBase"]
[SourceQuality "1"]
[TimeControl "5400+30"]

{[%evp 15,58,8,13,0,2,8,20,18,2,1,90,77,32767,91,133,32767,32767,-21,-60,32767,-60,32767,32767,-82,-56,-50,-37,32767,-33,-25,-32,-25,32767,32767,32767,32767,32767,32767,32767,32,32767,32767,32767,32767,53]} 1. d4 {[%emt 0:00:00]} d5 {[%emt 0:00:06]} 2. c4 {[%emt 0:00:00]} e6 {[%emt 0:00:05]} 3. cxd5 {[%emt 0:00:25]} exd5 {[%emt 0:00:07]} 4. Nc3 {[%emt 0:00:20]} c6 {[%emt 0:00:26]} 5. Qc2 {[%emt 0:00:14]} Bd6 {[%emt 0:00:55]} 6. Nf3 {[%emt 0:00:27]} Ne7 {[%emt 0:00:52]} 7. Bg5 {[%emt 0:03:28]} f6 {[%emt 0:17:39]} 8. Bd2 {[%emt 0:06:31] LiveBook: 8 Games D31: Queen's Gambit Declined: Semi-Slav without ...Nf6 (+ Marshall Gambit and Noteboom) and Exchange Variation lines without ...Nf6} Na6 {[%emt 0:05:30]} 9. a3 {[%emt 0:01:53]} (9. e4 Nb4 10. Qb3 a5 11. a3 a4 12. Qd1 dxe4 13. Nxe4 Nbd5 14. Bc4 Be6 15. O-O O-O {½-½ (34) Ivanchuk,V (2728)-Kramnik,V (2803) Tbilisi 2017}) 9... Bf5 $146 {[%emt 0:06:30]} ({Find the theoretical novelty and annotate with similar games:} 9... O-O 10. e3 Nc7 11. Bd3 h6 12. Ne2 a5 13. Ng3 Bd7 14. Nh4 b5 15. Ngf5 Nxf5 16. Nxf5 {1-0 (36) Cernea,R (2140)-Stanciu,A (2220) Eforie Nord 1999}) 10. e4 {[%emt 0:03:45]} dxe4 {[%emt 0:09:04]} 11. Nxe4 {[%emt 0:01:14]} Bxe4 {[%emt 0:05:12]} 12. Qxe4 {[%emt 0:00:15]} Qb6 {[%emt 0:00:52]} (12... Nc7 $11 {keeps the balance.}) 13. b4 {[%emt 0:03:11]} O-O-O {[%emt 0:05:05]} 14. Bc4 {[%emt 0:13:44]} Kb8 {[%emt 0:06:29]} 15. O-O {[%emt 0:01:21]} g5 {[%emt 0:01:45]} 16. Bxa6 {[%emt 0:08:55]} (16. Rfb1 $16) 16... Qxa6 {[%emt 0:00:53]} 17. a4 {[%emt 0:00:21]} Qc4 {[%emt 0:06:40]} 18. Rfc1 {[%emt 0:02:08]} Qd5 {[%emt 0:00:39]} 19. Qxd5 {[%emt 0:07:15]} Nxd5 {[%emt 0:00:14]} 20. Rab1 {[%emt 0:00:05]} Bf4 {[%emt 0:01:32]} 21. g3 {[%emt 0:01:31]} Bc7 {[%emt 0:03:28]} 22. b5 {[%emt 0:03:02]} cxb5 {[%emt 0:00:15]} 23. Rxb5 {[%emt 0:00:32]} g4 {[%emt 0:01:39]} 24. Nh4 {[%emt 0:00:53]} Ne7 {[%emt 0:02:56]} 25. Rcb1 {[%emt 0:02:03]} b6 {[%emt 0:01:04]} 26. a5 {[%emt 0:03:09]} Kb7 {[%emt 0:01:41]} 27. axb6 {[%emt 0:02:27]} Bxb6 {[%emt 0:01:14]} 28. Bb4 {[%emt 0:02:36]} Nd5 {[%emt 0:01:56]} 29. Bc5 {[%emt 0:01:28]} Rd7 $14 {[%emt 0:00:36]} 30. R5b3 {[%emt 0:02:40]} 1/2-1/2

[Event "FRA-ch Youth U16 2018"]
[Site "Agen"]
[Date "2018.04.22"]
[Round "9"]
[White "Lagarde, Adeline"]
[Black "Francois, Gwladys"]
[Result "1/2-1/2"]
[ECO "B24"]
[WhiteElo "1621"]
[BlackElo "1765"]
[Annotator "NA RC"]
[PlyCount "92"]
[EventDate "2018.??.??"]
[EventType "swiss"]
[EventCountry "FRA"]
[SourceTitle "playchess.com"]
[Source "ChessBase"]
[SourceQuality "1"]
[TimeControl "5400+30"]

1. e4 {[%emt 0:00:00]} c5 {[%emt 0:00:27]} 2. Nc3 {[%emt 0:00:00]} Nc6 {[%emt 0:01:01]} 3. d3 {[%emt 0:00:32]} d6 {[%emt 0:02:26]} 4. Be3 {[%emt 0:01:02]} Rb8 {[%emt 0:05:04]} 5. Nf3 {[%emt 0:07:01]} Nf6 {[%emt 0:06:57]} 6. d4 {[%emt 0:03:01]} cxd4 {[%emt 0:02:30]} 7. Nxd4 {[%emt 0:00:20]} a6 {[%emt 0:03:05]} 8. a4 {[%emt 0:06:04]} g6 {[%emt 0:01:33]} 9. g3 {[%emt 0:02:22]} Bg7 {[%emt 0:01:04]} 10. Bg2 {[%emt 0:00:20]} Ng4 {[%emt 0:03:19]} 11. O-O {[%emt 0:06:47]} Nxe3 {[%emt 0:00:46]} 12. fxe3 {[%emt 0:00:11]} O-O {[%emt 0:00:16]} 13. Rb1 {[%emt 0:01:45]} Qb6 {[%emt 0:06:43]} 14. Nd5 {[%emt 0:02:27]} Qd8 {[%emt 0:01:36]} 15. Qd2 {[%emt 0:06:57]} Bd7 {[%emt 0:07:43]} 16. Rf3 {[%emt 0:13:25]} Ne5 {[%emt 0:00:45]} 17. Rf2 {[%emt 0:08:12]} Bxa4 {[%emt 0:02:01]} 18. b3 {[%emt 0:01:48]} Bd7 {[%emt 0:01:17]} 19. Rbf1 {[%emt 0:03:24]} Ng4 {[%emt 0:06:44]} 20. Rf3 {[%emt 0:04:03]} e6 {[%emt 0:03:14]} 21. Nc3 {[%emt 0:01:59]} Qb6 {[%emt 0:00:36]} 22. Rd1 {[%emt 0:03:21]} Bh6 {[%emt 0:05:52]} 23. Re1 {[%emt 0:08:26]} e5 {[%emt 0:00:12]} 24. Nd5 {[%emt 0:01:36]} Qd8 {[%emt 0:03:10]} 25. Ne2 {[%emt 0:00:59]} Bg7 {[%emt 0:01:05]} 26. Ref1 {[%emt 0:03:12]} Nh6 {[%emt 0:04:56]} 27. Nf6+ {[%emt 0:02:49]} Kh8 {[%emt 0:00:20]} 28. Qxd6 {[%emt 0:01:14]} Bb5 {[%emt 0:00:31]} 29. Qxd8 {[%emt 0:00:51]} Rbxd8 {[%emt 0:00:39]} 30. c4 {[%emt 0:00:45]} Bc6 {[%emt 0:00:19]} 31. Nd5 {[%emt 0:00:19]} f5 {[%emt 0:01:56]} 32. Nec3 {[%emt 0:00:55]} fxe4 {[%emt 0:01:02]} 33. Rxf8+ {[%emt 0:00:20]} Rxf8 {[%emt 0:00:05]} 34. Rxf8+ {[%emt 0:00:45]} Bxf8 {[%emt 0:00:05]} 35. Bxe4 {[%emt 0:00:36]} Kg7 {[%emt 0:02:02]} 36. h3 {[%emt 0:00:43]} Nf7 {[%emt 0:00:48]} 37. Bg2 {[%emt 0:00:31]} Nd6 {[%emt 0:00:39]} 38. g4 {[%emt 0:00:35]} Kf7 {[%emt 0:01:37]} 39. Kf2 {[%emt 0:00:30]} a5 {[%emt 0:02:58]} 40. Bf3 {[%emt 0:01:46]} b5 {[%emt 0:03:31]} 41. cxb5 {[%emt 0:02:12]} Nxb5 {[%emt 0:00:09]} 42. Nxb5 {[%emt 0:00:27]} Bxb5 {[%emt 0:00:04]} 43. Be2 {[%emt 0:00:08]} Bd7 {[%emt 0:01:18]} 44. Bc4 {[%emt 0:00:28]} Kg7 {[%emt 0:00:49]} 45. Kg3 {[%emt 0:00:35]} Bd6 {[%emt 0:00:54]} 46. Kf3 {[%emt 0:01:00]} Bc6 1/2-1/2